fUSD/lending_fUSD_20260309
["ID","MTS","AMOUNT","RATE_DAILY","PERIOD"]
[408006804,1773016240788,-11288.26757801,0.00018033,2]
[408006805,1773016240798,-10938.47441489,0.00018033,2]
[408006806,1773016241056,-2300.0,0.00018082,7]
[408006807,1773016241118,-1500.0,0.00018082,7]
[408006808,1773016241127,-700.0,0.00018082,7]
[408006809,1773016241136,-6069.65812094,0.000181,2]
[408006810,1773016241146,-2351.0,0.00018149,2]
[408006811,1773016241155,-2914.19,0.00018191,2]
[408006812,1773016241164,-1031.12,0.00018239,2]
[408006813,1773016241174,-503.0,0.0001826,3]
[408006814,1773016241184,-3240.0,0.00018264,2]
[408006815,1773016241200,-167.58,0.0001829,2]
[408006816,1773016241212,-282.42,0.00018302,2]
[408006817,1773016241221,-1000.0,0.00018348,2]
[408006818,1773016241230,-1000.0,0.00018348,2]
[408006819,1773016241245,-5210.38398435,0.00018361,2]
[408006820,1773016241255,-500.0,0.00018367,2]
[408006821,1773016241264,-2019.1831114,0.00018367,2]
[408006822,1773016241273,-847.0,0.000184,2]
[408006823,1773016241283,-847.0,0.000184,2]
[408006824,1773016241295,-500.0,0.000184,2]
[408006825,1773016241305,-500.0,0.000184,2]
[408006826,1773016241314,-500.0,0.000184,2]
[408006827,1773016241326,-500.0,0.000184,2]
[408006828,1773016241335,-205.88057451,0.000184,2]
[408006829,1773016241345,-1226.71,0.00018453,2]
[408006830,1773016241355,-161.52,0.00018456,2]
[408006831,1773016241365,-11288.26757801,0.000185,2]
[408006832,1773016241374,-10938.47441489,0.000185,2]
[408006833,1773016241384,-736.0,0.00018629,2]
[408006834,1773016241393,-162.67,0.0001868,2]
[408006835,1773016241403,-6069.65812094,0.000187,2]
[408006836,1773016241412,-494.64624274,0.00018867,2]
[408006837,1773016241422,-500.0,0.00018867,2]
[408006838,1773016241431,-1500.0,0.00018896,2]
[408006839,1773016241440,-489.71509886,0.00018896,2]
[408006840,1773016241450,-500.0,0.00018948,2]
[408006841,1773016241459,-1000.0,0.00018948,2]
[408006842,1773016241469,-634.58548457,0.00018948,2]
[408006843,1773016241478,-11288.26757801,0.00018967,2]
[408006844,1773016241487,-10938.47441489,0.00018967,2]
[408006845,1773016241497,-973.3,0.00018975,2]
[408006846,1773016241507,-292.60588981,0.00018988,2]
[408006847,1773016241520,-435.18752691,0.00019,2]
[408006848,1773016241529,-613.73590573,0.00019,5]
[408006849,1773016241539,-985.255233,0.00019,2]
[408006850,1773016241548,-3033.07147966,0.00019,2]
[408006851,1773016241558,-847.0,0.0001904,2]
[408006852,1773016241568,-973.3,0.00019068,2]
[408006853,1773016241578,-282.42,0.00019134,2]
[408006854,1773016241588,-973.3,0.00019161,2]
[408006855,1773016241597,-2300.0,0.00019178,7]
[408006856,1773016241607,-1500.0,0.00019178,7]
[408006857,1773016241616,-700.0,0.00019178,7]
[408006858,1773016241626,-515.16,0.00019178,30]
[408006859,1773016241635,-2000.0,0.000192,2]
[408006860,1773016241644,-973.3,0.00019255,2]
[408006861,1773016241654,-2000.0,0.000193,2]
[408006862,1773016241664,-6069.65812094,0.000193,2]
[408006863,1773016241674,-168.0,0.00019308,2]
[408006864,1773016241683,-973.3,0.00019348,2]
[408006865,1773016241693,-855.0,0.0001936,2]
[408006866,1773016241703,-2805.0,0.0001936,2]
[408006867,1773016241713,-2232.0,0.0001936,2]
[408006868,1773016241722,-781.25,0.00019372,2]
[408006869,1773016241731,-1390.28858434,0.000194,2]
[408006870,1773016241757,-2000.0,0.000194,2]
[408006871,1773016241766,-2000.0,0.000194,2]
[408006872,1773016241776,-10200.0,0.000194,7]
[408006873,1773016241786,-6300.0,0.000194,7]
[408006874,1773016241796,-2700.0,0.000194,7]
[408006875,1773016241805,-1000.0,0.00019415,2]
[408006876,1773016241815,-2108.0,0.00019418,2]
[408006877,1773016241824,-877.24,0.00019426,2]
[408006878,1773016241834,-11288.26757801,0.00019433,2]
[408006879,1773016241844,-150.0,0.00019437,2]
[408006880,1773016241854,-500.0,0.00019437,2]
[408006881,1773016241863,-150.0,0.00019437,2]
[408006882,1773016241873,-500.0,0.00019437,2]
[408006883,1773016241882,-150.0,0.00019437,2]
[408006884,1773016241892,-500.0,0.00019437,2]
[408006885,1773016241902,-150.0,0.00019437,2]
[408006886,1773016241911,-500.0,0.00019437,2]
[408006887,1773016241925,-500.0,0.00019437,2]
[408006888,1773016241934,-500.0,0.00019437,2]
[408006889,1773016241944,-500.0,0.00019437,2]
[408006890,1773016241954,-150.0,0.00019437,2]
[408006891,1773016241964,-150.0,0.00019437,2]
[408006892,1773016241973,-150.0,0.00019437,2]
[408006893,1773016241984,-500.0,0.00019437,2]
[408006894,1773016241996,-500.0,0.00019437,2]
[408006895,1773016242006,-500.0,0.00019437,2]
[408006896,1773016242016,-500.0,0.00019437,2]
[408006897,1773016242025,-150.0,0.00019437,2]
[408006898,1773016242037,-150.0,0.00019437,2]
[408006899,1773016242047,-500.0,0.00019437,2]
[408006900,1773016242058,-500.0,0.00019437,2]
[408006901,1773016242070,-150.0,0.00019437,2]
[408006902,1773016242080,-500.0,0.00019437,2]
[408006903,1773016242089,-150.0,0.00019437,2]
[408006904,1773016242099,-500.0,0.00019437,2]
[408006905,1773016242109,-500.0,0.00019437,2]
[408006906,1773016242119,-500.0,0.00019437,2]
[408006907,1773016242128,-500.0,0.00019437,2]
[408006908,1773016242138,-150.0,0.00019437,2]
[408006909,1773016242148,-500.0,0.00019437,2]
[408006910,1773016242158,-154.34344167,0.00019437,2]
[408006911,1773016242168,-150.0,0.00019437,2]
[408006912,1773016242178,-500.0,0.00019437,2]
[408006913,1773016242188,-500.0,0.00019437,2]
[408006914,1773016242198,-500.0,0.00019437,2]
[408006915,1773016242208,-500.0,0.00019437,2]
[408006916,1773016242218,-500.0,0.00019437,2]
[408006917,1773016242227,-500.0,0.00019437,2]
[408006918,1773016242240,-155.44184075,0.00019437,2]
[408006920,1773016242263,-150.0,0.00019437,2]
[408006922,1773016242272,-500.0,0.00019437,2]
[408006924,1773016242282,-150.0,0.00019437,2]
[408006926,1773016242291,-214.72781122,0.00019437,2]
[408006928,1773016242301,-500.0,0.00019437,2]
[408006929,1773016242310,-150.0,0.00019437,2]
[408006930,1773016242320,-500.0,0.00019437,2]
[408006931,1773016242335,-150.0,0.00019437,2]
[408006932,1773016242345,-425.44706878,0.0001944,2]
[408006933,1773016242355,-420.1464061,0.0001944,2]
[408006934,1773016242365,-973.3,0.00019441,2]
[408006935,1773016242375,-1180.57628362,0.00019444,2]
[408006937,1773016242386,-1000.0,0.00019452,2]
[408006939,1773016242397,-162.67,0.0001946,2]
[408006940,1773016242407,-168.0,0.00019489,2]
[408006942,1773016242417,-168.0,0.00019491,2]
[408006943,1773016242427,-201.92925428,0.00019492,2]
[408006944,1773016242436,-500.0,0.00019492,2]
[408006945,1773016242446,-150.0,0.00019492,2]
[408006946,1773016242456,-500.0,0.00019492,2]
[408006947,1773016242465,-150.0,0.00019492,2]
[408006948,1773016242475,-500.0,0.00019492,2]
[408006949,1773016242484,-150.0,0.00019492,2]
[408006950,1773016242494,-500.0,0.00019492,2]
[408006951,1773016242504,-500.0,0.00019492,2]
[408006952,1773016242514,-500.0,0.00019492,2]
[408006953,1773016242524,-500.0,0.00019492,2]
[408006954,1773016242534,-150.0,0.00019492,2]
[408006955,1773016242544,-177.89931814,0.00019492,2]
[408006956,1773016242553,-500.0,0.00019492,2]
[408006957,1773016242563,-500.0,0.00019492,2]
[408006958,1773016242573,-500.0,0.00019492,2]
[408006959,1773016242583,-500.0,0.00019492,2]
[408006960,1773016242593,-500.0,0.00019492,2]
[408006961,1773016242602,-500.0,0.00019492,2]
[408006962,1773016242612,-500.0,0.00019492,2]
[408006963,1773016242622,-150.0,0.00019492,2]
[408006964,1773016242631,-500.0,0.00019492,2]
[408006965,1773016242641,-500.0,0.00019492,2]
[408006966,1773016242651,-500.0,0.00019492,2]
[408006967,1773016242661,-500.0,0.00019492,2]
[408006968,1773016242671,-150.0,0.00019492,2]
[408006969,1773016242680,-150.0,0.00019492,2]
[408006970,1773016242690,-500.0,0.00019492,2]
[408006971,1773016242700,-500.0,0.00019492,2]
[408006972,1773016242709,-500.0,0.00019492,2]
[408006973,1773016242719,-500.0,0.00019492,2]
[408006974,1773016242728,-500.0,0.00019492,2]
[408006975,1773016242742,-500.0,0.00019492,2]
[408006976,1773016242763,-534.47576362,0.00019492,2]
[408006977,1773016242777,-150.0,0.00019492,2]
[408006978,1773016242786,-500.0,0.00019492,2]
[408006979,1773016242796,-150.0,0.00019492,2]
[408006980,1773016242806,-644.11265572,0.00019492,2]
[408006981,1773016242815,-500.0,0.00019492,2]
[408006982,1773016242824,-150.0,0.00019492,2]
[408006983,1773016242835,-1500.0,0.00019496,2]
[408006984,1773016242844,-619.0,0.000195,2]
[408006985,1773016242854,-2460.0,0.000195,2]
[408006986,1773016242864,-2000.0,0.000195,7]
[408006988,1773016242873,-1200.0,0.000195,7]
[408006990,1773016242883,-500.0,0.000195,7]
[408006992,1773016242892,-2000.0,0.000195,2]
[408006993,1773016242902,-2000.0,0.000195,2]
[408006994,1773016242912,-503.0,0.0001952,4]
[408006995,1773016242921,-172.82949155,0.00019531,2]
[408006996,1773016242931,-160.0,0.00019531,2]
[408006997,1773016242940,-973.3,0.00019534,2]
[408006998,1773016242950,-350.0,0.00019534,2]
[408006999,1773016242959,-500.0,0.00019547,2]
[408007000,1773016242969,-202.73758704,0.00019547,2]
[408007001,1773016242978,-500.0,0.00019547,2]
[408007002,1773016242992,-150.0,0.00019547,2]
[408007005,1773016243003,-500.0,0.00019547,2]
[408007007,1773016243012,-150.0,0.00019547,2]
[408007008,1773016243021,-196.24370704,0.00019547,2]
[408007009,1773016243031,-500.0,0.00019547,2]
[408007010,1773016243040,-614.0,0.00019547,2]
[408007011,1773016243050,-502.49983748,0.00019547,2]
[408007012,1773016243059,-159.45374442,0.00019547,2]
[408007013,1773016243071,-500.0,0.00019547,2]
[408007014,1773016243080,-227.9970319,0.00019547,2]
[408007015,1773016243090,-500.0,0.00019547,2]
[408007016,1773016243103,-500.0,0.00019547,2]
[408007017,1773016243112,-500.0,0.00019547,2]
[408007018,1773016243122,-500.0,0.00019547,2]
[408007019,1773016243133,-400.0,0.00019547,2]
[408007020,1773016243142,-200.41015646,0.00019547,2]
[408007021,1773016243152,-500.0,0.00019547,2]
[408007022,1773016243161,-500.0,0.00019547,2]
[408007023,1773016243171,-151.16147339,0.00019547,2]
[408007024,1773016243181,-500.0,0.00019547,2]
[408007025,1773016243191,-150.0,0.00019547,2]
[408007026,1773016243201,-150.0,0.00019547,2]
[408007027,1773016243211,-500.0,0.00019547,2]
[408007028,1773016243221,-500.0,0.00019547,2]
[408007029,1773016243230,-500.0,0.00019547,2]
[408007030,1773016243253,-500.0,0.00019547,2]
[408007031,1773016243265,-500.0,0.00019547,2]
[408007032,1773016243275,-500.0,0.00019547,2]
[408007033,1773016243285,-150.0,0.00019547,2]
[408007034,1773016243295,-500.0,0.00019547,2]
[408007035,1773016243305,-150.0,0.00019547,2]
[408007036,1773016243317,-353.48441563,0.00019547,2]
[408007037,1773016243327,-165.95964201,0.00019547,2]
[408007038,1773016243338,-153.27020519,0.0001958,2]
[408007039,1773016243348,-256.6048712,0.000196,2]
[408007040,1773016243358,-616.64573758,0.000196,2]
[408007041,1773016243368,-2000.0,0.000196,7]
[408007042,1773016243377,-1200.0,0.000196,7]
[408007043,1773016243387,-500.0,0.000196,7]
[408007044,1773016243397,-2000.0,0.000196,2]
[408007045,1773016243407,-2000.0,0.000196,2]
[408007046,1773016243417,-500.0,0.00019601,2]
[408007047,1773016243427,-500.0,0.00019601,2]
[408007048,1773016243436,-150.0,0.00019601,2]
[408007049,1773016243446,-500.0,0.00019601,2]
[408007050,1773016243456,-150.0,0.00019601,2]
[408007051,1773016243466,-500.0,0.00019601,2]
[408007052,1773016243475,-500.0,0.00019601,2]
[408007053,1773016243485,-500.0,0.00019601,2]
[408007054,1773016243496,-500.0,0.00019601,2]
[408007055,1773016243506,-500.0,0.00019601,2]
[408007056,1773016243516,-350.0,0.00019601,2]
[408007057,1773016243525,-199.5192988,0.00019601,2]
[408007058,1773016243535,-150.0,0.00019601,2]
[408007059,1773016243544,-276.75692552,0.00019601,2]
[408007060,1773016243554,-250.0,0.00019601,2]
[408007061,1773016243564,-500.0,0.00019601,2]
[408007062,1773016243573,-500.0,0.00019601,2]
[408007063,1773016243583,-250.0,0.00019601,2]
[408007064,1773016243593,-500.0,0.00019601,2]
[408007065,1773016243603,-500.0,0.00019601,2]
[408007066,1773016243612,-231.22605719,0.00019601,2]
[408007067,1773016243622,-500.0,0.00019601,2]
[408007068,1773016243631,-150.0,0.00019601,2]
[408007069,1773016243641,-973.3,0.00019627,2]
[408007070,1773016243650,-781.25,0.00019646,2]
[408007071,1773016243659,-500.0,0.00019656,2]
[408007072,1773016243669,-500.0,0.00019656,2]
[408007073,1773016243679,-150.0,0.00019656,2]
[408007074,1773016243688,-464.52367001,0.00019656,2]
[408007075,1773016243706,-258.62446348,0.00019656,2]
[408007076,1773016243718,-500.0,0.00019656,2]
[408007077,1773016243727,-500.0,0.00019656,2]
[408007078,1773016243737,-500.0,0.00019656,2]
[408007079,1773016243764,-500.0,0.00019656,2]
[408007080,1773016243774,-500.0,0.00019656,2]
[408007081,1773016243783,-150.0,0.00019656,2]
[408007082,1773016243793,-523.88791799,0.00019656,2]
[408007083,1773016243803,-500.0,0.00019656,2]
[408007084,1773016243812,-500.0,0.00019656,2]
[408007085,1773016243822,-500.0,0.00019656,2]
[408007086,1773016243832,-500.0,0.00019656,2]
[408007087,1773016243841,-150.0,0.00019656,2]
[408007088,1773016243851,-847.0,0.0001968,2]
[408007089,1773016243861,-2805.0,0.0001968,2]
[408007090,1773016243870,-2000.0,0.000197,7]
[408007091,1773016243880,-877.24,0.000197,2]
[408007092,1773016243889,-1200.0,0.000197,7]
[408007093,1773016243899,-500.0,0.000197,7]
[408007094,1773016243908,-2000.0,0.000197,2]
[408007095,1773016243918,-2000.0,0.000197,2]
[408007096,1773016243928,-942.12,0.00019711,2]
[408007097,1773016243938,-500.0,0.00019711,2]
[408007098,1773016243948,-500.0,0.00019711,2]
[408007099,1773016243957,-212.18393224,0.00019711,2]
[408007100,1773016243967,-500.0,0.00019711,2]
[408007101,1773016243978,-500.0,0.00019711,2]
[408007102,1773016243988,-200.0,0.00019711,2]
[408007103,1773016244001,-500.0,0.00019711,2]
[408007104,1773016244011,-500.0,0.00019711,2]
[408007105,1773016244020,-150.0,0.00019711,2]
[408007106,1773016244030,-500.0,0.00019711,2]
[408007107,1773016244042,-500.0,0.00019711,2]
[408007108,1773016244051,-500.0,0.00019711,2]
[408007109,1773016244060,-490.06683403,0.00019711,2]
[408007110,1773016244071,-350.0,0.00019715,2]
[408007111,1773016244081,-973.3,0.0001972,2]
[408007112,1773016244090,-255.6,0.0001972,2]
[408007113,1773016244100,-1000.0,0.00019726,2]
[408007114,1773016244109,-350.0,0.00019758,3]
[408007115,1773016244119,-2108.0,0.00019762,2]
[408007116,1773016244128,-531.1610732,0.00019766,2]
[408007117,1773016244138,-500.0,0.00019766,2]
[408007118,1773016244147,-500.0,0.00019766,2]
[408007119,1773016244156,-350.0,0.00019766,2]
[408007120,1773016244166,-636.0,0.00019766,2]
[408007121,1773016244176,-500.0,0.00019766,2]
[408007122,1773016244186,-500.0,0.00019766,2]
[408007123,1773016244196,-200.0,0.00019766,2]
[408007124,1773016244206,-512.0,0.00019766,2]
[408007125,1773016244216,-350.0,0.0001977,3]
[408007126,1773016244226,-150.0,0.00019792,2]
[408007127,1773016244236,-2000.0,0.000198,7]
[408007128,1773016244261,-1200.0,0.000198,7]
[408007129,1773016244271,-500.0,0.000198,7]
[408007130,1773016244285,-300.0,0.000198,2]
[408007131,1773016244294,-300.0,0.000198,30]
[408007132,1773016244304,-2000.0,0.000198,2]
[408007133,1773016244315,-2000.0,0.000198,2]
[408007134,1773016244336,-20488.33629454,0.0001981,2]
[408007135,1773016244347,-973.3,0.00019814,2]
[408007136,1773016244358,-500.0,0.00019821,2]
[408007137,1773016244368,-500.0,0.00019821,2]
[408007138,1773016244378,-600.0,0.00019821,2]
[408007139,1773016244388,-563.0,0.00019821,2]
[408007140,1773016244398,-200.0,0.0001984,2]
[408007141,1773016244408,-168.0,0.00019861,2]
[408007142,1773016244418,-500.0,0.00019873,2]
[408007143,1773016244428,-150.0,0.00019873,2]
[408007144,1773016244438,-500.0,0.00019875,2]
[408007145,1773016244448,-537.8007681,0.00019875,2]
[408007146,1773016244457,-300.0,0.0001989,2]
[408007147,1773016244467,-25000.0,0.00019891,3]
[408007148,1773016244477,-300.0,0.00019899,2]
[408007149,1773016244487,-594.30869475,0.000199,2]
[408007150,1773016244496,-2000.0,0.000199,2]
[408007151,1773016244830,-2000.0,0.000199,2]
[408007152,1773016244839,-25000.0,0.000199,3]
[408007153,1773016244849,-969.3276,0.000199,2]
[408007154,1773016244858,-1000.0,0.000199,2]
[408007155,1773016244867,-218.77,0.000199,2]
[408007156,1773016244876,-1541.03721467,0.000199,2]
[408007157,1773016244885,-24422.82791355,0.000199,3]
[408007158,1773016244895,-11288.26757801,0.000199,2]
[408007159,1773016244904,-2455.0,0.000199,7]
[408007160,1773016244913,-634.35358399,0.000199,2]
[408007161,1773016244922,-1429.65166031,0.000199,2]
[408007162,1773016244931,-1800.0,0.000199,7]
[408007163,1773016244941,-900.0,0.000199,7]
[408007164,1773016244951,-5210.38398435,0.000199,2]
[408007165,1773016244964,-220.17920537,0.000199,2]
[408007166,1773016244973,-6069.65812094,0.000199,2]
[408007167,1773016244983,-2975.0,0.000199,2]
[408007168,1773016244999,-973.3,0.00019907,2]
[408007169,1773016245008,-165.0,0.00019917,2]
[408007170,1773016245018,-781.25,0.0001992,2]
[408007171,1773016245027,-250.0,0.00019922,2]
[408007172,1773016245038,-500.0,0.0001993,2]
[408007173,1773016245048,-165.24,0.00019944,2]
[408007174,1773016245057,-250.0,0.0001995,2]
[408007175,1773016245067,-150.0,0.00019954,2]
[408007176,1773016245076,-1500.0,0.00019963,2]
[408007177,1773016245086,-3292.0,0.00019964,2]
[408007178,1773016245095,-282.42,0.00019966,2]
[408007179,1773016245104,-150.0,0.00019973,2]
[408007180,1773016245114,-877.24,0.00019974,2]
[408007181,1773016245123,-250.0,0.0001998,2]
[408007182,1773016245133,-1000.0,0.0001998,2]
[408007183,1773016245142,-1000.0,0.0001998,2]
[408007184,1773016245152,-1000.0,0.0001998,2]
[408007185,1773016245161,-1000.0,0.0001998,2]
[408007186,1773016245170,-1000.0,0.0001998,2]
[408007188,1773016245180,-1000.0,0.0001998,2]
[408007189,1773016245189,-1000.0,0.0001998,2]
[408007190,1773016245199,-1000.0,0.0001998,2]
[408007191,1773016245208,-1000.0,0.0001998,2]
[408007192,1773016245218,-1515.0,0.00019983,2]
[408007193,1773016245227,-1515.0,0.00019983,2]
[408007194,1773016245237,-1515.0,0.00019983,2]
[408007195,1773016245248,-1515.0,0.00019983,2]
[408007196,1773016245258,-1515.0,0.00019983,2]
[408007197,1773016245267,-1515.0,0.00019983,2]
[408007198,1773016245276,-1515.0,0.00019983,2]
[408007199,1773016245286,-1515.0,0.00019983,2]
[408007200,1773016245295,-1515.0,0.00019983,2]
[408007201,1773016245304,-1515.0,0.00019983,2]
[408007202,1773016245313,-1515.0,0.00019983,2]
[408007203,1773016245323,-160.0,0.00019983,2]
[408007204,1773016245332,-151.0,0.00019983,2]
[408007205,1773016245342,-151.0,0.00019983,2]
[408007206,1773016245351,-202.88572961,0.00019983,2]
[408007207,1773016245361,-166.0,0.00019983,2]
[408007208,1773016245370,-160.0,0.00019983,2]
[408007209,1773016245380,-166.0,0.00019983,2]
[408007210,1773016245389,-166.0,0.00019983,2]
[408007211,1773016245399,-166.0,0.00019983,2]
[408007212,1773016245408,-160.0,0.00019983,2]
[408007213,1773016245418,-166.0,0.00019983,2]
[408007214,1773016245427,-166.0,0.00019983,2]
[408007215,1773016245437,-166.0,0.00019983,2]
[408007216,1773016245446,-185.0,0.00019983,2]
[408007217,1773016245455,-151.0,0.00019983,2]
[408007218,1773016245465,-151.0,0.00019983,2]
[408007219,1773016245474,-151.0,0.00019983,2]
[408007220,1773016245483,-151.0,0.00019983,2]
[408007221,1773016245493,-151.0,0.00019983,2]
[408007222,1773016245502,-151.0,0.00019983,2]
[408007223,1773016245512,-500.0,0.00019985,2]
[408007224,1773016245523,-1279.0,0.0001999,2]
[408007225,1773016245534,-1213.0,0.0001999,2]
[408007226,1773016245545,-922.0,0.0001999,2]
[408007227,1773016245555,-151.0,0.00019997,2]
[408007229,1773016245566,-55120.2040491,0.00019997,2]
[408007231,1773016245576,-3100.4160915,0.00019997,2]
[408007233,1773016245586,-151.0,0.00019997,2]
[408007234,1773016245595,-2145.0,0.0002,2]
[408007235,1773016245606,-1453532.47561813,0.0002,2]
[408007236,1773016245615,-403.40210307,0.0002,2]
[408007237,1773016245625,-330.000002,0.0002,3]
[408007238,1773016245634,-4795912.83956138,0.0002,2]
[408007239,1773016246379,-659.48,0.000195,2]
[408007240,1773016246925,-1145.574,0.00019433,2]
[408007241,1773016247121,-4500.0,0.00019433,2]
[408007242,1773016247132,-3466.15800539,0.00019433,2]
[408007243,1773016247143,-1826.7424095,0.00019433,2]
[408007244,1773016247152,-5332.52,0.000195,2]
[408007245,1773016247162,-732.7727895,0.0002,2]
[408007246,1773016247632,-6603.9,0.0002,2]
[408007247,1773016247643,-9650.0,0.0002,2]
[408007248,1773016338929,500.0,9e-05,2]
[408007249,1773016339405,500.0,9e-05,2]
[408007250,1773016339874,500.0,9e-05,2]
[408007251,1773016340351,500.0,9e-05,2]
[408007252,1773016341858,799.67453994,9e-05,2]
[408007253,1773016343772,1000.0,9e-05,2]
[408007254,1773016344257,1000.0,9e-05,2]
[408007255,1773016344331,-1000.0,0.00015,30]
[408007256,1773016344363,-500.0,0.00015,30]
[408007257,1773016344393,-1000.0,0.00015,30]
[408007258,1773016344421,-699.10188392,0.00015,30]
[408007259,1773016344449,-226.3720272,0.00015,30]
[408007260,1773016344490,-500.0,0.00015,30]
[408007261,1773016344520,-500.0,0.00015,30]
[408007262,1773016344550,-149.06217776,0.00015,30]
[408007263,1773016344606,500.0,9e-05,2]
[408007264,1773016344871,1000.0,9e-05,2]
[408007265,1773016344903,500.0,9e-05,2]
[408007266,1773016346438,500.0,9e-05,2]
[408007267,1773016346473,118.46633446,9e-05,2]
[408007268,1773016346504,881.53366554,9e-05,2]
[408007269,1773016346552,500.0,9e-05,2]
[408007270,1773016346602,1000.0,9e-05,2]
[408007271,1773016346650,500.0,9e-05,2]
[408007272,1773016346687,1000.0,9e-05,2]
[408007273,1773016346877,1000.0,9e-05,2]
[408007274,1773016347363,1000.0,9e-05,2]
[408007275,1773016347929,1000.0,9e-05,2]
[408007276,1773016348426,1000.0,9e-05,2]
[408007277,1773016348890,1000.0,9e-05,2]
[408007278,1773016349353,1000.0,9e-05,2]
[408007279,1773016349451,500.0,9e-05,2]
[408007280,1773016349828,1000.0,9e-05,2]
[408007281,1773016350307,1355.67578767,9e-05,2]
[408007282,1773016350652,500.0,9e-05,2]
[408007283,1773016351547,500.0,9e-05,2]
[408007284,1773016352025,500.0,9e-05,2]
[408007285,1773016353088,503.3509132,9e-05,2]
[408007286,1773016353999,-850.93782224,0.00015,30]
[408007287,1773016354033,-500.0,0.00015,30]
[408007288,1773016354067,-655.89577996,0.00015,30]
[408007289,1773016354105,-500.0,0.00015,30]
[408007290,1773016354142,-500.0,0.00015,30]
[408007291,1773016354180,-1000.0,0.00015,30]
[408007292,1773016354211,-500.0,0.00015,30]
[408007293,1773016354359,-1000.0,0.00015,30]
[408007294,1773016354391,-1000.0,0.00015,30]
[408007295,1773016354423,-1000.0,0.00015,30]
[408007296,1773016354453,-1000.0,0.00015,30]
[408007297,1773016354483,-1000.0,0.00015,30]
[408007298,1773016354660,-1000.0,0.00015,30]
[408007299,1773016354695,-1000.0,0.00015,30]
[408007300,1773016354732,-373.07221866,0.00015,30]
[408007301,1773016354765,-1000.0,0.00015,30]
[408007302,1773016354796,-500.0,0.00015,30]
[408007303,1773016354829,-1000.0,0.00015,30]
[408007304,1773016357217,-500.0,0.00015,30]
[408007305,1773016357246,-1000.0,0.00015,30]
[408007306,1773016357275,-500.0,0.00015,30]
[408007307,1773016357305,-1000.0,0.00015,30]
[408007308,1773016357336,-500.0,0.00015,30]
[408007309,1773016357367,-500.0,0.00015,30]
[408007310,1773016357397,-500.0,0.00015,30]
[408007311,1773016357424,-500.0,0.00015,30]
[408007312,1773016357797,500.0,9e-05,2]
[408007313,1773016358261,500.0,9e-05,2]
[408007314,1773016364051,-500.0,0.00015,30]
[408007315,1773016364085,-500.0,0.00015,30]
[408007316,1773016364114,-500.0,0.00015,30]
[408007317,1773016364143,-500.0,0.00015,30]
[408007318,1773016364172,-500.0,0.00015,30]
[408007319,1773016364199,-500.0,0.00015,30]
[408007320,1773016364226,-500.0,0.00015,30]
[408007321,1773016364253,-500.0,0.00015,30]